Workbook

Sheet Assumptions
A1: SEMINOLE COUNTY LAND VALUE CREATION — INVESTMENT BUDGET MODEL
A2: 1735 Timocuan Way, Longwood, FL | Land Development Only — No Construction
A4: COLOR CODING LEGEND
A5: Blue Text — Hardcoded Input Assumptions
A6: Black Text — Calculated Formula
A7: Green Text — Cross-Sheet Link
A9: PROJECT DETAILS
A10: Project Name | B10: Seminole County Land Value Creation
A11: Subject Property | B11: 1735 Timocuan Way, Longwood, FL
A12: Access Parcel | B12: 1731 Timocuan Way, Longwood, FL
A13: County | B13: Seminole County, Florida
A14: Total Site Acreage | B14: 3.5 | C14: acres (approx. total)
A15: Buildable Acreage (post-mitigation) | B15: 3 | C15: acres (target)
A16: Wetland / Buffer Acres to Mitigate | B16: 0.5 | C16: acres
A17: Current Zoning | B17: Residential (R-1)
A18: Target Zoning | B18: Commercial / C-1
A19: Strategy | B19: Land Value Enhancement — Access, Grading, Mitigation, Entitlement
A21: LAND & ACQUISITION ASSUMPTIONS
A22: Acquisition Cost — 1731 Access Parcel | B22: 280000 | C22: Market value (CMA)
A23: Down Payment % | B23: 0.2 | C23: 20% of acquisition price
A24: Down Payment ($) | B24: =B22*B23 -> 56000 | C24: Calculated
A25: Loan on Access Parcel | B25: =B22-B24 -> 224000 | C25: Acquisition less down payment
A26: Access Parcel Loan Interest Rate | B26: 0.075 | C26: Assumed conventional financing
A27: Access Parcel Loan Term (months) | B27: 24 | C27: Bridge / construction loan
A28: Post-Entitlement Target Value ($/acre) | B28: 1000000 | C28: Longwood commercial CMA benchmark
A29: Buildable Acres | B29: 3 | C29: Post-mitigation buildable area
A30: Projected Land Value (Post-Entitlement) | B30: =B28*B29 -> 3000000 | C30: Target $/acre x buildable acres
A32: FLORIDA WETLAND MITIGATION — ASSUMPTION & METHOD SELECTION
A33: Florida law (Ch. 373 F.S. / ERP Rules) requires mitigation for wetland impacts. Three compliant options below:
A34: Mitigation Method | B34: Wetland Impact (acres) | C34: Ratio Required | D34: Credits Needed | E34: Est. Cost / Credit ($) | F34: Estimated Cost ($) | G34: Selected Method
A35: Mitigation Banking (Buy Credits from SWFMD/SRWMD Bank) | B35: 0.5 | C35: 2 | D35: =B35*C35 -> 1 | E35: 50000 | F35: =D35*E35 -> 50000 | G35: YES ✓
A36: In-Lieu Fee Program (FL Dept. of Environmental Protection) | B36: 0.5 | C36: 1.5 | D36: =B36*C36 -> 0.75 | E36: 35000 | F36: =D36*E36 -> 26250
A37: On-Site / Permittee-Responsible (Preserve/Enhance on property) | B37: 0.5 | C37: 3 | D37: =B37*C37 -> 1.5 | E37: 20000 | F37: =D37*E37 -> 30000
A39: ► Selected Method: Mitigation Banking (Row 35) — credits purchased from SWFMD-approved bank. Row 35 total flows to Dev Budget.
A41: DEVELOPMENT COST ASSUMPTIONS (Land Only — No Construction)
A42: Road / Access Improvement (lump sum) | B42: 45000 | C42: Gravel/asphalt access road, culvert, signage
A43: Grading & Earthwork (per acre) | B43: 12000 | C43: $/acre for rough grade, cut/fill, compaction
A44: Buildable Acres for Grading | B44: 3 | C44: Linked to Project Details above
A45: Grading Total | B45: =B42*B44 -> 135000 | C45: Grading rate x acres
A46: Vegetation Clearing (per acre) | B46: 8000 | C46: Mechanical clearing, mulching, haul-off
A47: Acres to Clear | B47: 2 | C47: Upland clearing; excludes mitigation buffer
A48: Clearing Total | B48: =B46*B47 -> 16000 | C48: Clearing rate x acres
A49: Mitigation Cost (Selected Method) | B49: =F35 -> 50000 | C49: Auto-linked from Florida Mitigation table
A50: Survey & Boundary Marking | B50: 8500 | C50: ALTA/boundary + topographic survey
A51: Environmental Site Assessment (Phase I/II) | B51: 7500 | C51: Required for commercial entitlement
A52: Geotechnical / Soil Testing | B52: 5000 | C52: Bearing capacity, percolation tests
A53: Contingency % (Hard Costs) | B53: 0.1 | C53: 10% hard cost contingency
A55: SOFT COST & FINANCING ASSUMPTIONS
A56: Legal & Zoning / Variance Filing | B56: 52500 | C56: Midpoint of $30K–$75K estimate
A57: Environmental Permits (ERP / FDEP) | B57: 18000 | C57: SWFMD Environmental Resource Permit
A58: Wetland Delineation & Agency Coordination | B58: 6500 | C58: Certified wetland scientist + agency meetings
A59: Title Search, Closing & Recording | B59: 4500 | C59: For access parcel acquisition
A60: Insurance (General Liability) | B60: 3600 | C60: Annual, 24-month carry period
A61: Marketing & Disposition Costs | B61: 25000 | C61: Broker commission on exit sale (~1% of $3M)
A62: Other & Contingency (Soft) | B62: 10000 | C62: Miscellaneous soft cost buffer
A63: Carrying / Holding Cost (monthly) | B63: 1500 | C63: Taxes, utilities, maintenance per month
A64: Holding Period (months) | B64: 24 | C64: Estimated time to entitlement & disposition
A65: Total Carrying Costs | B65: =B63*B64 -> 36000 | C65: Monthly x months
A66: Financing Rate (Bridge Loan) | B66: 0.075 | C66: 7.5% bridge/construction note
A67: Investor Split (Net Profit) | B67: 0.5 | C67: 50% of net profit to investor (post cost recovery)
A68: Sponsor / Developer Split | B68: 0.5 | C68: 50% retained by developer

Sheet Dev Budget
A1: SEMINOLE COUNTY LAND DEVELOPMENT — DETAILED BUDGET
A2: 1735 Timocuan Way, Longwood, FL | Land Enhancement Only — Road Access / Grading / Mitigation / Entitlement
A4: Line Item | B4: Unit Rate / Assumption | C4: Total Cost ($) | D4: Notes / Source
A5: A. LAND / ACCESS ACQUISITION
A6: Access Parcel — 1731 Timocuan Way (full price) | B6: =Assumptions!B22 -> 280000 | C6: =Assumptions!B22 -> 280000 | D6: Full acquisition cost; 20% down by developer
A7: Less: Developer Down Payment | B7: =Assumptions!B24 -> 56000 | C7: =-Assumptions!B24 -> -56000 | D7: Paid by developer equity at close
A8: Access Parcel Bridge Loan (Financed Portion) | B8: =Assumptions!B25 -> 224000 | C8: =Assumptions!B25 -> 224000 | D8: Remainder financed; repaid at disposition
A9: Total Acquisition Cost (Cash Required at Close) | C9: =Assumptions!B24 -> 56000 | D9: Developer down payment = cash out at close
A11: B. HARD COSTS — LAND DEVELOPMENT (No Construction)
A12: Road Access Improvement (gravel/asphalt, culvert, entry) | B12: =Assumptions!B39 -> 0 | C12: =Assumptions!B39 -> 0 | D12: Lump sum; access road from public ROW to parcel
A13: Grading & Earthwork | B13: =Assumptions!B42 & " /acre x " & TEXT(Assumptions!B44,"#,##0.00") & " ac" -> 45000 /acre x 3.00 ac | C13: =Assumptions!B45 -> 135000 | D13: Cut/fill, rough grade, compaction per buildable acre
A14: Vegetation Clearing & Mulching | B14: =Assumptions!B46 & " /acre x " & TEXT(Assumptions!B47,"#,##0.00") & " ac" -> 8000 /acre x 2.00 ac | C14: =Assumptions!B48 -> 16000 | D14: Mechanical clearing of upland areas; haul-off
A15: Wetland Mitigation — Banking Credits (Florida Ch.373 F.S.) | B15: =Assumptions!F35 -> 50000 | C15: =Assumptions!F35 -> 50000 | D15: SWFMD-approved mitigation bank; 0.5 ac impact x 2.0 ratio x $50K/credit
A16: Survey & Boundary Marking | B16: =Assumptions!B50 -> 8500 | C16: =Assumptions!B50 -> 8500 | D16: ALTA/boundary + topographic survey
A17: Environmental Site Assessment (Phase I/II) | B17: =Assumptions!B51 -> 7500 | C17: =Assumptions!B51 -> 7500 | D17: Required pre-entitlement
A18: Geotechnical / Soil Testing | B18: =Assumptions!B52 -> 5000 | C18: =Assumptions!B52 -> 5000 | D18: Bearing capacity, soil percolation tests
A19: Sub-total Hard Costs (Pre-Contingency) | C19: =SUM(C12:C18) -> 222000
A20: Contingency (10% of Hard Costs) | B20: =Assumptions!B53 -> 0.1 | C20: =C19*Assumptions!B53 -> 22200 | D20: 10% hard cost contingency buffer
A21: TOTAL HARD COSTS | C21: =C19+C20 -> 244200
A23: C. SOFT COSTS — ENTITLEMENT, LEGAL & PROFESSIONAL
A24: Legal, Zoning & Variance Filing | B24: =Assumptions!B56 -> 52500 | C24: =Assumptions!B56 -> 52500 | D24: Variance, rezoning, hearings
A25: Environmental Permits (ERP / FDEP/SWFMD) | B25: =Assumptions!B57 -> 18000 | C25: =Assumptions!B57 -> 18000 | D25: SWFMD Environmental Resource Permit
A26: Wetland Delineation & Agency Coordination | B26: =Assumptions!B58 -> 6500 | C26: =Assumptions!B58 -> 6500 | D26: Certified wetland scientist fees
A27: Title Search, Closing & Recording | B27: =Assumptions!B59 -> 4500 | C27: =Assumptions!B59 -> 4500 | D27: Access parcel acquisition closing
A28: Insurance (General Liability, 24 mo) | B28: =Assumptions!B60 -> 3600 | C28: =Assumptions!B60 -> 3600 | D28: Site liability during development
A29: Marketing & Disposition Costs | B29: =Assumptions!B61 -> 25000 | C29: =Assumptions!B61 -> 25000 | D29: ~1% broker commission on exit
A30: Other & Contingency (Soft) | B30: =Assumptions!B62 -> 10000 | C30: =Assumptions!B62 -> 10000 | D30: Miscellaneous buffer
A31: Carrying / Holding Costs (24 months) | B31: =Assumptions!B63 -> 1500 | C31: =Assumptions!B65 -> 36000 | D31: Monthly holding x 24 months
A32: TOTAL SOFT COSTS | C32: =SUM(C24:C31) -> 156100
A34: TOTAL PROJECT COST (Acquisition Cash + Hard + Soft) | C34: =C9+C21+C32 -> 456300

Sheet Sources & Uses
A1: SOURCES & USES — SEMINOLE COUNTY LAND VALUE CREATION
A2: 1735 Timocuan Way, Longwood, FL | Total Capital Stack & Investor Economics
B4: Scenario 1 (Low Cost) | C4: Base Case | D4: Scenario 2 (High Cost)
A5: USES OF CAPITAL
A6: Acquisition Down Payment (Access Parcel) | B6: 56000 | C6: ='Dev Budget'!C9 -> 56000 | D6: 70000
A7: Road Access Improvement | B7: 35000 | C7: ='Dev Budget'!C12 -> 0 | D7: 55000
A8: Grading & Earthwork | B8: 32000 | C8: ='Dev Budget'!C13 -> 135000 | D8: 42000
A9: Vegetation Clearing | B9: 12000 | C9: ='Dev Budget'!C14 -> 16000 | D9: 20000
A10: Wetland Mitigation (Banking Credits) | B10: 40000 | C10: ='Dev Budget'!C15 -> 50000 | D10: 60000
A11: Survey, ESA & Geotech | B11: 18000 | C11: ='Dev Budget'!C16 -> 8500 | D11: 25000
A12: Hard Cost Contingency | B12: 10000 | C12: ='Dev Budget'!C20 -> 22200 | D12: 15000
A13: Legal, Zoning & Permits | B13: 48500 | C13: ='Dev Budget'!C24 -> 52500 | D13: 93500
A14: Title, Insurance & Carrying Costs | B14: 28000 | C14: =SUM('Dev Budget'!C27:C28,'Dev Budget'!C31) -> 44100 | D14: 45000
A15: Marketing & Disposition | B15: 15000 | C15: ='Dev Budget'!C29 -> 25000 | D15: 35000
A16: Soft Cost Contingency | B16: 7500 | C16: ='Dev Budget'!C30 -> 10000 | D16: 12500
A17: TOTAL USES | B17: =SUM(B6:B16) -> 302000 | C17: =SUM(C6:C16) -> 419300 | D17: =SUM(D6:D16) -> 473000
A19: SOURCES OF CAPITAL
A20: Developer / Sponsor Equity | B20: 75000 | C20: =C17-B21-C22 -> 70300 | D20: 100000 | E20: Developer down payment + closing costs
A21: Investor Equity Contribution | B21: 125000 | C21: =C17-C20-C22 -> 125000 | D21: 200000 | E21: Investor funds mitigation, legal, development work
A22: Bridge Loan — Access Parcel | B22: =Assumptions!B25 -> 224000 | C22: =Assumptions!B25 -> 224000 | D22: =Assumptions!B25 -> 224000 | E22: 80% LTV on access parcel; repaid at sale
A23: Total Sources | B23: =SUM(B20:B22) -> 424000 | C23: =SUM(C20:C22) -> 419300 | D23: =SUM(D20:D22) -> 524000
A26: PROJECTED RETURNS & INVESTOR ECONOMICS
A27: Projected Land Value (Post-Entitlement) | B27: 2500000 | C27: =Assumptions!B30 -> 3000000 | D27: 3500000 | E27: ~$1M/acre x buildable acres
A28: Total Project Cost (All-in) | B28: =B17 -> 302000 | C28: =C17 -> 419300 | D28: =D17 -> 473000 | E28: From USES section above
A29: Gross Profit (Before Splits) | B29: =B27-B28 -> 2198000 | C29: =C27-C28 -> 2580700 | D29: =D27-D28 -> 3027000 | E29: Land value less total cost
A30: Investor Share (50% of Gross Profit) | B30: =B29*Assumptions!B67 -> 1099000 | C30: =C29*Assumptions!B67 -> 1290350 | D30: =D29*Assumptions!B67 -> 1513500 | E30: 50% of gross profit
A31: Developer / Sponsor Share (50%) | B31: =B29*Assumptions!B68 -> 1099000 | C31: =C29*Assumptions!B68 -> 1290350 | D31: =D29*Assumptions!B68 -> 1513500 | E31: 50% of gross profit
A32: Equity Multiple (Investor) | B32: =IF(B21>0,(B21+B30)/B21,"-") -> 9.792 | C32: =IF(C21>0,(C21+C30)/C21,"-") -> 11.3228 | D32: =IF(D21>0,(D21+D30)/D21,"-") -> 8.5675 | E32: Total return / equity invested
A33: Return on Investment (ROI %) | B33: =IF(B21>0,B30/B21,"-") -> 8.792 | C33: =IF(C21>0,C30/C21,"-") -> 10.3228 | D33: =IF(D21>0,D30/D21,"-") -> 7.5675 | E33: Investor profit / equity invested

Sheet Land Value Proforma
A1: LAND VALUE CREATION PROFORMA — TIMELINE & ENTITLEMENT MILESTONES
A2: 1735 Timocuan Way, Longwood, FL | Strategy: Road Access + Grading + Mitigation + Commercial Entitlement → Exit Sale
B4: Month 0 (Close) | C4: Month 3 (Access) | D4: Month 6 (Grade/Clear) | E4: Month 9 (Mitigation) | F4: Month 12 (Permits Filed) | G4: Month 18 (Approved) | H4: Month 24 (Exit Sale) | I4: Year 1 | J4: Year 2 | K4: IRR / Return
A5: DEVELOPMENT MILESTONES
A6: Phase | B6: Acquisition & Planning | C6: Road Access Installed | D6: Grading & Clearing | E6: Wetland Mitigation | F6: Permit Applications | G6: Entitlement Approved | H6: Disposition (Exit Sale)
A7: Activity | B7: Close on 1731; survey; ESA | C7: Access road, culvert, entry | D7: Rough grade + clearing | E7: Mitigation bank credits purchased | F7: SWFMD ERP, Zoning app | G7: Variance/rezoning granted | H7: Market + close sale
A8: Florida Law Trigger | B8: Ch.689 F.S. (Conveyance) | C8: FDOT/County Driveway Permit | D8: Ch.403 F.S. Stormwater | E8: Ch.373 F.S. ERP / Sec.404 | F8: Seminole Co. LDC + SWFMD | G8: Ch.163 F.S. Comp Plan | H8: Ch.475 F.S. Broker Req.
A10: LAND VALUE CREATION — CUMULATIVE CASH FLOW
A11: Acquisition Down Payment | B11: 56000 | C11: 0 | D11: 0 | E11: 0 | F11: 0 | G11: 0 | H11: 0 | I11: =SUM(B11:E11) -> 56000 | J11: =SUM(F11:H11) -> 0
A12: Road Access Improvement | B12: 0 | C12: 45000 | D12: 0 | E12: 0 | F12: 0 | G12: 0 | H12: 0 | I12: 45000 | J12: 0
A13: Grading & Earthwork | B13: 0 | C13: 0 | D13: 36000 | E13: 0 | F13: 0 | G13: 0 | H13: 0 | I13: 36000 | J13: 0
A14: Vegetation Clearing | B14: 0 | C14: 0 | D14: 16000 | E14: 0 | F14: 0 | G14: 0 | H14: 0 | I14: 16000 | J14: 0
A15: Wetland Mitigation (Bank) | B15: 0 | C15: 0 | D15: 0 | E15: 50000 | F15: 0 | G15: 0 | H15: 0 | I15: 50000 | J15: 0
A16: Survey & Technical Studies | B16: 21000 | C16: 0 | D16: 0 | E16: 0 | F16: 0 | G16: 0 | H16: 0 | I16: 21000 | J16: 0
A17: Legal, Zoning & Permits | B17: 10000 | C17: 0 | D17: 0 | E17: 0 | F17: 42500 | G17: 0 | H17: 0 | I17: 10000 | J17: 42500
A18: Insurance & Carrying Costs | B18: 2250 | C18: 2250 | D18: 2250 | E18: 2250 | F18: 2250 | G18: 2250 | H18: 2250 | I18: 9000 | J18: 6750
A19: Marketing & Disposition | B19: 0 | C19: 0 | D19: 0 | E19: 0 | F19: 0 | G19: 0 | H19: 25000 | I19: 0 | J19: 25000
A20: Contingency | B20: 0 | C20: 0 | D20: 5000 | E20: 5000 | F20: 0 | G20: 0 | H20: 0 | I20: 10000 | J20: 0
A21: Total Period Costs | B21: =SUM(B11:B20) -> 89250 | C21: 47250 | D21: 59250 | E21: 57250 | F21: 44750 | G21: 2250 | H21: 27250 | I21: 253000 | J21: 74250
A23: CUMULATIVE COST & VALUE TRACKING
A24: Cumulative Cash Invested | B24: =B21 -> 89250 | C24: =B24+C21 -> 136500 | D24: 195750 | E24: 253000 | F24: 297750 | G24: 300000 | H24: 327250
A25: Estimated Land Value at Stage | B25: 150000 | C25: 200000 | D25: 280000 | E25: 400000 | F25: 600000 | G25: 2400000 | H25: 3000000
A26: Unrealized Gain / (Loss) | B26: =B25-B24 -> 60750 | C26: 63500 | D26: 84250 | E26: 147000 | F26: 302250 | G26: 2100000 | H26: 2672750
A27: Value Uplift Multiplier | B27: =IF(B24>0,B25/B24,"-") -> 1.680672269 | C27: 1.465201465 | D27: 1.430395913 | E27: 1.581027668 | F27: 2.01511335 | G27: 8 | H27: 9.167303285
A30: INVESTOR IRR ANALYSIS (24-Month Hold)
A31: Investor Equity Invested | C31: ='Sources & Uses'!C21 -> 125000
A32: Investor Profit Share (50%) | C32: ='Sources & Uses'!C30 -> 1290350 | D32: 50% of gross profit at exit
A33: Total Return to Investor | C33: =C31+C32 -> 1415350 | D33: Equity returned + profit share
A34: Investor ROI % | C34: =IF(C31>0,C32/C31,"-") -> 10.3228 | D34: Profit / Equity Invested
A35: Annualized IRR (approx.) | C35: =IF(C31>0,(1+C32/C31)^(1/2)-1,"-") -> 2.364936849 | D35: 2-year hold simplification
A36: Equity Multiple | C36: =IF(C31>0,C33/C31,"-") -> 11.3228 | D36: Total return / equity invested
